fUST/lending_fUST_20240218
["ID","MTS","AMOUNT","RATE_DAILY","PERIOD"]
[314341357,1708203039419,-3961.32,0.00029045,2]
[314341358,1708203039428,-500.0,0.00029045,2]
[314341359,1708203039438,-504.32224582,0.00029045,2]
[314341360,1708203039447,-500.0,0.00029045,2]
[314341361,1708203039456,-2513.08,0.00029045,2]
[314341362,1708203039465,-159.3469226,0.00029046,2]
[314341363,1708203039474,-233.06320751,0.00029046,2]
[314341364,1708203039484,-500.0,0.00029046,2]
[314341365,1708203039493,-500.0,0.00029046,2]
[314341366,1708203039503,-500.0,0.00029046,2]
[314341367,1708203039512,-500.0,0.00029046,2]
[314341368,1708203039521,-500.0,0.00029046,2]
[314341369,1708203039531,-500.0,0.00029046,2]
[314341370,1708203039541,-500.0,0.00029046,2]
[314341371,1708203039550,-500.0,0.00029046,2]
[314341372,1708203039559,-505.20829705,0.00029046,2]
[314341373,1708203039569,-504.67487428,0.00029046,2]
[314341374,1708203039578,-500.0,0.00029046,2]
[314341375,1708203039587,-534.99074956,0.00029046,2]
[314341376,1708203039597,-500.0,0.00029046,2]
[314341377,1708203039606,-507.03918604,0.00029046,2]
[314341378,1708203039615,-503.1545323,0.00029046,2]
[314341379,1708203039625,-500.0,0.00029046,2]
[314341380,1708203039634,-500.0,0.00029046,2]
[314341381,1708203039644,-500.0,0.00029046,2]
[314341382,1708203039653,-500.0,0.00029046,2]
[314341383,1708203039663,-500.0,0.00029046,2]
[314341384,1708203039673,-500.0,0.00029046,2]
[314341385,1708203039683,-733.34,0.00029046,2]
[314341386,1708203039692,-500.0,0.00029046,2]
[314341387,1708203039702,-500.0,0.00029046,2]
[314341388,1708203039711,-3169.99,0.00029046,2]
[314341389,1708203039720,-500.0,0.00029046,2]
[314341390,1708203039730,-500.0,0.00029046,2]
[314341391,1708203039739,-507.35627239,0.00029046,2]
[314341392,1708203039748,-500.0,0.00029046,2]
[314341393,1708203039828,-500.0,0.00029046,2]
[314341394,1708203039838,-500.0,0.00029046,2]
[314341395,1708203039850,-500.0,0.00029046,2]
[314341396,1708203039860,-2369.23,0.00029046,2]
[314341397,1708203039869,-595.45940406,0.00029046,2]
[314341398,1708203039878,-337.80225645,0.00029046,2]
[314341399,1708203039889,-500.0,0.00029046,2]
[314341400,1708203039898,-2557.08,0.00029046,2]
[314341401,1708203039908,-500.0,0.00029046,2]
[314341402,1708203039917,-500.0,0.00029046,2]
[314341403,1708203039927,-500.0,0.00029046,2]
[314341404,1708203039937,-500.0,0.00029046,2]
[314341405,1708203039946,-715.82,0.00029046,2]
[314341406,1708203039955,-540.63992941,0.00029046,2]
[314341407,1708203039965,-941.22,0.00029046,2]
[314341408,1708203039974,-500.0,0.00029046,2]
[314341409,1708203039983,-500.0,0.00029046,2]
[314341410,1708203039992,-500.0,0.00029046,2]
[314341411,1708203040001,-500.0,0.00029046,2]
[314341412,1708203040010,-500.0,0.00029046,2]
[314341413,1708203040019,-500.0,0.00029046,2]
[314341414,1708203040029,-500.0,0.00029046,2]
[314341415,1708203040038,-690.97,0.00029046,2]
[314341416,1708203040047,-500.0,0.00029046,2]
[314341417,1708203040056,-500.0,0.00029046,2]
[314341418,1708203040065,-500.0,0.00029046,2]
[314341419,1708203040075,-500.0,0.00029046,2]
[314341420,1708203040085,-500.0,0.00029046,2]
[314341421,1708203040094,-500.0,0.00029046,2]
[314341422,1708203040103,-500.0,0.00029046,2]
[314341423,1708203040112,-525.27731322,0.00029046,2]
[314341424,1708203040121,-515.31,0.00029046,2]
[314341425,1708203040130,-614.94,0.00029046,2]
[314341426,1708203040140,-500.0,0.00029046,2]
[314341427,1708203040150,-500.0,0.00029046,2]
[314341428,1708203040159,-500.0,0.00029046,2]
[314341429,1708203040168,-500.0,0.00029046,2]
[314341430,1708203040177,-500.0,0.00029046,2]
[314341431,1708203040186,-3284.3,0.00029046,2]
[314341432,1708203040195,-521.77890812,0.00029046,2]
[314341433,1708203040204,-500.0,0.00029046,2]
[314341434,1708203040214,-500.0,0.00029046,2]
[314341435,1708203040223,-500.0,0.00029047,2]
[314341436,1708203040232,-150.0,0.00029047,2]
[314341437,1708203040241,-504.0168972,0.00029047,2]
[314341438,1708203040251,-779.22,0.00029047,2]
[314341439,1708203040260,-503.608474,0.00029047,2]
[314341440,1708203040269,-509.33952143,0.00029047,2]
[314341441,1708203040279,-500.0,0.00029047,2]
[314341442,1708203040288,-630.28434313,0.00029047,2]
[314341443,1708203040298,-500.0,0.00029047,2]
[314341444,1708203040308,-500.0,0.00029047,2]
[314341445,1708203040318,-504.07309495,0.00029047,2]
[314341446,1708203040327,-500.0,0.00029047,2]
[314341447,1708203040336,-500.0,0.00029047,2]
[314341448,1708203040346,-500.0,0.00029047,2]
[314341449,1708203040355,-500.0,0.00029047,2]
[314341450,1708203040364,-500.0,0.00029047,2]
[314341451,1708203040373,-505.48477638,0.00029047,2]
[314341452,1708203040383,-541.41043922,0.00029047,2]
[314341453,1708203040395,-506.0878688,0.00029047,2]
[314341454,1708203040404,-500.0,0.00029047,2]
[314341455,1708203040414,-151.0,0.00029047,2]
[314341456,1708203040423,-645.5992516,0.00029047,2]
[314341457,1708203040432,-500.0,0.00029047,2]
[314341458,1708203040442,-649.98,0.00029047,2]
[314341459,1708203040451,-503.5333913,0.00029047,2]
[314341460,1708203040461,-500.0,0.00029047,2]
[314341461,1708203040470,-768.96,0.00029047,2]
[314341462,1708203040479,-500.0,0.00029047,2]
[314341463,1708203040489,-688.93,0.00029047,2]
[314341464,1708203040498,-509.76910162,0.00029047,2]
[314341465,1708203040508,-500.0,0.00029047,2]
[314341466,1708203040517,-500.0,0.00029047,2]
[314341467,1708203040527,-500.0,0.00029047,2]
[314341468,1708203040537,-515.02886882,0.00029047,2]
[314341469,1708203040547,-513.39850921,0.00029047,2]
[314341470,1708203040556,-500.0,0.00029047,2]
[314341471,1708203040566,-151.0,0.00029047,2]
[314341472,1708203040575,-500.0,0.00029047,2]
[314341473,1708203040584,-512.48610251,0.00029047,2]
[314341474,1708203040593,-500.0,0.00029047,2]
[314341475,1708203040603,-2305.91,0.00029047,2]
[314341476,1708203040612,-151.0,0.00029047,2]
[314341477,1708203040621,-281.006276,0.00029047,2]
[314341478,1708203040631,-500.0,0.00029047,2]
[314341479,1708203040641,-500.0,0.00029047,2]
[314341480,1708203040652,-500.0,0.00029047,2]
[314341481,1708203040667,-500.0,0.00029047,2]
[314341482,1708203040680,-500.0,0.00029047,2]
[314341483,1708203040694,-500.0,0.00029047,2]
[314341484,1708203040708,-500.0,0.00029047,2]
[314341485,1708203040718,-496.84283628,0.00029048,2]
[314341486,1708203040730,-166.302034,0.00029072,2]
[314341487,1708203040742,-169.089799,0.00029189,2]
[314341488,1708203040755,-3961.32,0.00029319,2]
[314341489,1708203040768,-500.0,0.00029319,2]
[314341490,1708203040781,-500.0,0.00029319,2]
[314341491,1708203040794,-2513.08,0.00029319,2]
[314341492,1708203040807,-506.45631732,0.0002932,2]
[314341493,1708203040818,-500.0,0.0002932,2]
[314341494,1708203040829,-500.0,0.0002932,2]
[314341495,1708203040846,-500.0,0.0002932,2]
[314341496,1708203040858,-500.0,0.0002932,2]
[314341497,1708203040869,-466.09670805,0.0002932,2]
[314341498,1708203040882,-518.6324567,0.0002932,2]
[314341499,1708203040894,-500.0,0.0002932,2]
[314341500,1708203040906,-500.0,0.0002932,2]
[314341501,1708203040919,-500.0,0.0002932,2]
[314341502,1708203040932,-151.0,0.0002932,2]
[314341503,1708203040942,-500.0,0.0002932,2]
[314341504,1708203040953,-500.0,0.0002932,2]
[314341505,1708203040966,-500.0,0.0002932,2]
[314341506,1708203040978,-500.0,0.0002932,2]
[314341507,1708203040991,-458.0464762,0.0002932,2]
[314341508,1708203041002,-733.34,0.0002932,2]
[314341509,1708203041014,-517.44050524,0.0002932,2]
[314341510,1708203041025,-3169.99,0.0002932,2]
[314341511,1708203041037,-500.0,0.0002932,2]
[314341512,1708203041050,-500.0,0.0002932,2]
[314341513,1708203041063,-500.0,0.0002932,2]
[314341514,1708203041076,-500.0,0.0002932,2]
[314341515,1708203041090,-2369.23,0.0002932,2]
[314341516,1708203041103,-472.3,0.0002932,2]
[314341517,1708203041116,-2557.08,0.0002932,2]
[314341518,1708203041127,-500.0,0.0002932,2]
[314341519,1708203041138,-500.0,0.0002932,2]
[314341520,1708203041149,-500.0,0.0002932,2]
[314341521,1708203041159,-715.82,0.0002932,2]
[314341522,1708203041171,-941.22,0.0002932,2]
[314341523,1708203041184,-500.0,0.0002932,2]
[314341525,1708203041195,-500.0,0.0002932,2]
[314341526,1708203041207,-500.0,0.0002932,2]
[314341527,1708203041220,-500.0,0.0002932,2]
[314341528,1708203041231,-500.0,0.0002932,2]
[314341529,1708203041242,-500.0,0.0002932,2]
[314341530,1708203041252,-690.97,0.0002932,2]
[314341531,1708203041263,-500.0,0.0002932,2]
[314341532,1708203041274,-500.0,0.0002932,2]
[314341533,1708203041285,-500.0,0.0002932,2]
[314341534,1708203041298,-500.0,0.0002932,2]
[314341536,1708203041308,-500.0,0.0002932,2]
[314341538,1708203041319,-500.0,0.0002932,2]
[314341540,1708203041330,-515.31,0.0002932,2]
[314341541,1708203041341,-614.94,0.0002932,2]
[314341542,1708203041352,-506.1561853,0.0002932,2]
[314341543,1708203041362,-500.0,0.0002932,2]
[314341544,1708203041373,-500.0,0.0002932,2]
[314341545,1708203041384,-500.0,0.0002932,2]
[314341546,1708203041395,-3284.3,0.0002932,2]
[314341547,1708203041406,-502.88903493,0.0002932,2]
[314341548,1708203041416,-500.0,0.0002932,2]
[314341549,1708203041427,-525.30971961,0.00029321,2]
[314341550,1708203041438,-150.0,0.00029321,2]
[314341551,1708203041449,-779.22,0.00029321,2]
[314341552,1708203041460,-500.0,0.00029321,2]
[314341553,1708203041470,-501.06074641,0.00029321,2]
[314341554,1708203041481,-500.0,0.00029321,2]
[314341555,1708203041492,-500.0,0.00029321,2]
[314341556,1708203041503,-500.0,0.00029321,2]
[314341557,1708203041514,-503.86860364,0.00029321,2]
[314341558,1708203041525,-500.0,0.00029321,2]
[314341559,1708203041536,-500.0,0.00029321,2]
[314341560,1708203041549,-768.96,0.00029321,2]
[314341561,1708203041560,-500.0,0.00029321,2]
[314341562,1708203041571,-688.93,0.00029321,2]
[314341563,1708203041582,-505.27612881,0.00029321,2]
[314341564,1708203041593,-500.0,0.00029321,2]
[314341565,1708203041604,-500.0,0.00029321,2]
[314341566,1708203041615,-506.26113959,0.00029321,2]
[314341567,1708203041624,-151.0,0.00029321,2]
[314341568,1708203041634,-500.0,0.00029321,2]
[314341569,1708203041643,-506.76238936,0.00029321,2]
[314341570,1708203041749,-2305.91,0.00029321,2]
[314341571,1708203041763,-500.0,0.00029321,2]
[314341572,1708203041772,-500.0,0.00029321,2]
[314341573,1708203041781,-500.0,0.00029321,2]
[314341574,1708203041790,-500.0,0.00029321,2]
[314341575,1708203041800,-500.0,0.00029321,2]
[314341576,1708203041810,-500.0,0.00029321,2]
[314341577,1708203041819,-155.0,0.00029417,2]
[314341578,1708203041828,-169.089799,0.00029541,2]
[314341579,1708203041842,-166.302034,0.00029541,2]
[314341580,1708203041851,-153.0,0.00029589,2]
[314341581,1708203041861,-153.0,0.00029589,2]
[314341582,1708203041870,-226.2682966,0.00029589,2]
[314341583,1708203041881,-200.3193593,0.00029589,2]
[314341584,1708203041889,-153.0,0.00029589,2]
[314341585,1708203041898,-153.0,0.00029589,2]
[314341586,1708203041909,-200.3193593,0.00029589,2]
[314341587,1708203041918,-153.0,0.00029589,2]
[314341588,1708203041928,-153.0,0.00029589,2]
[314341589,1708203041937,-153.0,0.00029589,2]
[314341590,1708203041946,-200.3193593,0.00029589,2]
[314341591,1708203041955,-153.0,0.00029589,2]
[314341592,1708203041964,-153.0,0.00029589,2]
[314341593,1708203041973,-153.0,0.00029589,2]
[314341594,1708203041982,-153.0,0.00029589,2]
[314341595,1708203041992,-153.0,0.00029589,2]
[314341596,1708203042000,-153.0,0.00029589,2]
[314341597,1708203042009,-308.5222135,0.00029589,2]
[314341598,1708203042018,-216.9590275,0.00029589,2]
[314341599,1708203042028,-3961.32,0.00029593,2]
[314341600,1708203042037,-500.0,0.00029593,2]
[314341601,1708203042047,-444.72726313,0.00029593,2]
[314341602,1708203042056,-2513.08,0.00029593,2]
[314341603,1708203042065,-153.44114852,0.00029594,2]
[314341604,1708203042074,-500.0,0.00029594,2]
[314341605,1708203042084,-504.01055325,0.00029594,2]
[314341606,1708203042093,-180.24851023,0.00029594,2]
[314341607,1708203042103,-500.0,0.00029594,2]
[314341608,1708203042112,-500.0,0.00029594,2]
[314341609,1708203042121,-151.0,0.00029594,2]
[314341610,1708203042130,-270.22,0.00029594,2]
[314341611,1708203042139,-506.06743355,0.00029594,2]
[314341612,1708203042150,-521.01383545,0.00029594,2]
[314341613,1708203042159,-733.34,0.00029594,2]
[314341614,1708203042168,-3169.99,0.00029594,2]
[314341615,1708203042178,-500.0,0.00029594,2]
[314341616,1708203042187,-209.56,0.00029594,2]
[314341617,1708203042196,-500.0,0.00029594,2]
[314341618,1708203042205,-500.0,0.00029594,2]
[314341619,1708203042214,-2369.23,0.00029594,2]
[314341620,1708203042223,-2557.08,0.00029594,2]
[314341621,1708203042232,-500.0,0.00029594,2]
[314341622,1708203042242,-504.0187755,0.00029594,2]
[314341623,1708203042251,-715.82,0.00029594,2]
[314341624,1708203042260,-941.22,0.00029594,2]
[314341625,1708203042270,-311.36704535,0.00029594,2]
[314341626,1708203042279,-500.0,0.00029594,2]
[314341627,1708203042288,-500.051579,0.00029594,2]
[314341628,1708203042297,-500.0,0.00029594,2]
[314341629,1708203042306,-690.97,0.00029594,2]
[314341630,1708203042315,-500.0,0.00029594,2]
[314341631,1708203042325,-500.0,0.00029594,2]
[314341632,1708203042334,-500.0,0.00029594,2]
[314341633,1708203042343,-500.0,0.00029594,2]
[314341634,1708203042352,-500.0,0.00029594,2]
[314341635,1708203042361,-515.31,0.00029594,2]
[314341636,1708203042370,-614.94,0.00029594,2]
[314341637,1708203042379,-500.0,0.00029594,2]
[314341638,1708203042388,-500.0,0.00029594,2]
[314341639,1708203042397,-3284.3,0.00029594,2]
[314341640,1708203042406,-617.51,0.00029594,2]
[314341641,1708203042415,-779.22,0.00029595,2]
[314341642,1708203042425,-500.0,0.00029595,2]
[314341643,1708203042434,-224.5,0.00029595,2]
[314341644,1708203042443,-469.50533681,0.00029595,2]
[314341645,1708203042452,-507.25023719,0.00029595,2]
[314341646,1708203042461,-500.0,0.00029595,2]
[314341647,1708203042470,-500.0,0.00029595,2]
[314341648,1708203042479,-768.96,0.00029595,2]
[314341649,1708203042489,-505.50491521,0.00029595,2]
[314341650,1708203042498,-688.93,0.00029595,2]
[314341651,1708203042507,-500.0,0.00029595,2]
[314341652,1708203042517,-500.0,0.00029595,2]
[314341653,1708203042526,-500.0,0.00029595,2]
[314341654,1708203042535,-2305.91,0.00029595,2]
[314341655,1708203042544,-500.0,0.00029595,2]
[314341656,1708203042554,-500.0,0.00029595,2]
[314341657,1708203042563,-500.0,0.00029595,2]
[314341658,1708203042572,-500.0,0.00029595,2]
[314341659,1708203042582,-3961.32,0.00029867,2]
[314341660,1708203042591,-500.0,0.00029867,2]
[314341662,1708203042600,-2513.08,0.00029867,2]
[314341664,1708203042610,-198.19669351,0.00029868,2]
[314341666,1708203042619,-444.8,0.00029868,2]
[314341667,1708203042628,-500.0,0.00029868,2]
[314341669,1708203042637,-151.0,0.00029868,2]
[314341670,1708203042646,-733.34,0.00029868,2]
[314341671,1708203042655,-3169.99,0.00029868,2]
[314341672,1708203042665,-500.0,0.00029868,2]
[314341674,1708203042674,-500.0,0.00029868,2]
[314341675,1708203042683,-500.0,0.00029868,2]
[314341676,1708203042693,-2369.23,0.00029868,2]
[314341678,1708203042702,-2557.08,0.00029868,2]
[314341679,1708203042712,-500.0,0.00029868,2]
[314341680,1708203042721,-715.82,0.00029868,2]
[314341681,1708203042730,-941.22,0.00029868,2]
[314341682,1708203042740,-500.0,0.00029868,2]
[314341683,1708203042749,-500.0,0.00029868,2]
[314341684,1708203042759,-690.97,0.00029868,2]
[314341686,1708203042771,-500.0,0.00029868,2]
[314341688,1708203042780,-517.07370122,0.00029868,2]
[314341690,1708203042790,-500.0,0.00029868,2]
[314341691,1708203042799,-500.0,0.00029868,2]
[314341692,1708203042808,-500.0,0.00029868,2]
[314341693,1708203042817,-515.31,0.00029868,2]
[314341694,1708203042827,-614.94,0.00029868,2]
[314341695,1708203042836,-500.0,0.00029868,2]
[314341696,1708203042849,-500.0,0.00029868,2]
[314341697,1708203042858,-3284.3,0.00029868,2]
[314341698,1708203042867,-779.22,0.00029869,2]
[314341699,1708203042876,-500.0,0.00029869,2]
[314341701,1708203042887,-500.0,0.00029869,2]
[314341702,1708203042896,-768.96,0.00029869,2]
[314341704,1708203042905,-688.93,0.00029869,2]
[314341705,1708203042914,-183.11041211,0.00029869,2]
[314341706,1708203042924,-500.0,0.00029869,2]
[314341707,1708203042933,-500.0,0.00029869,2]
[314341708,1708203042942,-2305.91,0.00029869,2]
[314341709,1708203042951,-500.0,0.00029869,2]
[314341710,1708203042960,-500.0,0.00029869,2]
[314341711,1708203042970,-500.0,0.00029869,2]
[314341712,1708203042979,-4780.49,0.00029989,2]
[314341713,1708203042989,-4780.49,0.00029989,2]
[314341715,1708203042998,-4780.49,0.00029989,2]
[314341716,1708203043007,-4780.49,0.00029989,2]
[314341717,1708203043016,-4780.49,0.00029989,2]
[314341718,1708203043026,-13445.15,0.00029989,2]
[314341719,1708203043035,-13445.15,0.00029989,2]
[314341720,1708203043045,-160.24275126,0.0002999,3]
[314341721,1708203043054,-93550.03082707,0.0002999,2]
[314341722,1708203043063,-709.44835875,0.0003,2]
[314341723,1708203043073,-223.0,0.0003,2]
[314341724,1708203043082,-3961.32,0.00030141,2]
[314341725,1708203043091,-500.0,0.00030141,2]
[314341726,1708203043100,-2513.08,0.00030141,2]
[314341727,1708203043110,-500.0,0.00030142,2]
[314341728,1708203043119,-733.34,0.00030142,2]
[314341729,1708203043129,-3169.99,0.00030142,2]
[314341730,1708203043138,-500.0,0.00030142,2]
[314341731,1708203043148,-500.0,0.00030142,2]
[314341732,1708203043158,-500.0,0.00030142,2]
[314341733,1708203043167,-2369.23,0.00030142,2]
[314341734,1708203043176,-2557.08,0.00030142,2]
[314341735,1708203043185,-219.0763038,0.00030142,2]
[314341736,1708203043194,-715.82,0.00030142,2]
[314341737,1708203043204,-941.22,0.00030142,2]
[314341738,1708203043213,-500.0,0.00030142,2]
[314341739,1708203043222,-500.0,0.00030142,2]
[314341740,1708203043231,-690.97,0.00030142,2]
[314341741,1708203043240,-500.0,0.00030142,2]
[314341742,1708203043249,-500.0,0.00030142,2]
[314341743,1708203043259,-500.0,0.00030142,2]
[314341744,1708203043267,-500.0,0.00030142,2]
[314341745,1708203043277,-515.31,0.00030142,2]
[314341746,1708203043286,-614.94,0.00030142,2]
[314341747,1708203043296,-500.0,0.00030142,2]
[314341748,1708203043305,-512.83,0.00030142,2]
[314341749,1708203043314,-3284.3,0.00030142,2]
[314341750,1708203043324,-779.22,0.00030143,2]
[314341751,1708203043333,-167.23199005,0.00030143,2]
[314341752,1708203043342,-768.96,0.00030143,2]
[314341753,1708203043351,-688.93,0.00030143,2]
[314341754,1708203043360,-500.0,0.00030143,2]
[314341755,1708203043370,-410.34813149,0.00030143,2]
[314341756,1708203043379,-2305.91,0.00030143,2]
[314341757,1708203043389,-500.0,0.00030143,2]
[314341758,1708203043398,-500.0,0.00030143,2]
[314341759,1708203043407,-500.0,0.00030143,2]
[314341760,1708203043416,-283.22002948,0.00030316,2]
[314341761,1708203043425,-200.3193593,0.00030411,2]
[314341762,1708203043434,-200.3193593,0.00030411,2]
[314341763,1708203043443,-200.3193593,0.00030411,2]
[314341764,1708203043452,-397.3566213,0.00030411,2]
[314341765,1708203043462,-3961.32,0.00030415,2]
[314341766,1708203043471,-500.0,0.00030415,2]
[314341767,1708203043480,-2513.08,0.00030415,2]
[314341768,1708203043489,-500.0,0.00030416,2]
[314341769,1708203043498,-733.34,0.00030416,2]
[314341770,1708203043508,-3169.99,0.00030416,2]
[314341771,1708203043517,-500.0,0.00030416,2]
[314341772,1708203043526,-500.0,0.00030416,2]
[314341773,1708203043536,-500.0,0.00030416,2]
[314341774,1708203043545,-2369.23,0.00030416,2]
[314341775,1708203043555,-2557.08,0.00030416,2]
[314341776,1708203043564,-715.82,0.00030416,2]
[314341777,1708203043573,-941.22,0.00030416,2]
[314341778,1708203043582,-382.04,0.00030416,2]
[314341779,1708203043591,-500.0,0.00030416,2]
[314341780,1708203043601,-690.97,0.00030416,2]
[314341781,1708203043610,-500.0,0.00030416,2]
[314341782,1708203043619,-500.0,0.00030416,2]
[314341783,1708203043628,-500.0,0.00030416,2]
[314341784,1708203043637,-500.0,0.00030416,2]
[314341785,1708203043646,-515.31,0.00030416,2]
[314341786,1708203043656,-614.94,0.00030416,2]
[314341787,1708203043664,-500.0,0.00030416,2]
[314341788,1708203043674,-3284.3,0.00030416,2]
[314341789,1708203043682,-779.22,0.00030417,2]
[314341790,1708203043691,-768.96,0.00030417,2]
[314341791,1708203043701,-688.93,0.00030417,2]
[314341792,1708203043710,-500.0,0.00030417,2]
[314341793,1708203043720,-2305.91,0.00030417,2]
[314341794,1708203043729,-500.0,0.00030417,2]
[314341795,1708203043738,-500.0,0.00030417,2]
[314341796,1708203043748,-500.0,0.00030417,2]
[314341797,1708203043757,-283.22002943,0.00030456,2]
[314341798,1708203043768,-300.0,0.00030556,2]
[314341799,1708203043777,-283.22002943,0.00030595,2]
[314341800,1708203043786,-505.48383152,0.00030684,7]
[314341801,1708203043795,-3961.32,0.00030689,2]
[314341802,1708203043805,-500.0,0.00030689,2]
[314341803,1708203043813,-2513.08,0.00030689,2]
[314341804,1708203043822,-500.0,0.0003069,2]
[314341805,1708203043831,-733.34,0.0003069,2]
[314341806,1708203043845,-3169.99,0.0003069,2]
[314341807,1708203043854,-500.0,0.0003069,2]
[314341808,1708203043863,-500.0,0.0003069,2]
[314341809,1708203043873,-500.0,0.0003069,2]
[314341810,1708203043954,-2369.23,0.0003069,2]
[314341811,1708203043964,-2557.08,0.0003069,2]
[314341812,1708203043973,-715.82,0.0003069,2]
[314341813,1708203043982,-941.22,0.0003069,2]
[314341814,1708203043991,-500.0,0.0003069,2]
[314341815,1708203044000,-690.97,0.0003069,2]
[314341816,1708203044009,-500.0,0.0003069,2]
[314341817,1708203044018,-500.0,0.0003069,2]
[314341818,1708203044027,-500.0,0.0003069,2]
[314341819,1708203044036,-500.0,0.0003069,2]
[314341820,1708203044046,-515.31,0.0003069,2]
[314341821,1708203044055,-614.94,0.0003069,2]
[314341822,1708203044063,-500.0,0.0003069,2]
[314341823,1708203044073,-3284.3,0.0003069,2]
[314341824,1708203044082,-779.22,0.00030691,2]
[314341825,1708203044091,-768.96,0.00030691,2]
[314341826,1708203044099,-688.93,0.00030691,2]
[314341827,1708203044108,-500.0,0.00030691,2]
[314341828,1708203044118,-2305.91,0.00030691,2]
[314341829,1708203044127,-500.0,0.00030691,2]
[314341830,1708203044137,-500.0,0.00030691,2]
[314341831,1708203044147,-500.0,0.00030691,2]
[314341832,1708203044156,-300.0,0.00030697,2]
[314341833,1708203044165,-283.22002943,0.00030735,2]
[314341834,1708203044175,-155.0,0.00030787,2]
[314341835,1708203044184,-300.0,0.00030838,2]
[314341836,1708203044193,-283.22002943,0.00030874,2]
[314341837,1708203044202,-184.6217684,0.00030959,2]
[314341838,1708203044212,-3961.32,0.00030963,2]
[314341839,1708203044221,-500.0,0.00030963,2]
[314341840,1708203044231,-2513.08,0.00030963,2]
[314341841,1708203044240,-500.0,0.00030964,2]
[314341842,1708203044250,-733.34,0.00030964,2]
[314341843,1708203044259,-3169.99,0.00030964,2]
[314341844,1708203044269,-532.94,0.00030964,2]
[314341845,1708203044278,-500.0,0.00030964,2]
[314341846,1708203044287,-2369.23,0.00030964,2]
[314341847,1708203044296,-2557.08,0.00030964,2]
[314341848,1708203044305,-715.82,0.00030964,2]
[314341849,1708203044314,-941.22,0.00030964,2]
[314341850,1708203044324,-500.0,0.00030964,2]
[314341851,1708203044333,-690.97,0.00030964,2]
[314341852,1708203044342,-500.0,0.00030964,2]
[314341853,1708203044351,-500.0,0.00030964,2]
[314341854,1708203044360,-500.0,0.00030964,2]
[314341855,1708203044370,-500.0,0.00030964,2]
[314341856,1708203044379,-515.31,0.00030964,2]
[314341857,1708203044388,-614.94,0.00030964,2]
[314341858,1708203044398,-500.0,0.00030964,2]
[314341859,1708203044407,-3284.3,0.00030964,2]
[314341860,1708203044416,-779.22,0.00030965,2]
[314341861,1708203044425,-768.96,0.00030965,2]
[314341862,1708203044434,-688.93,0.00030965,2]
[314341863,1708203044443,-405.53960382,0.00030965,2]
[314341864,1708203044452,-2305.91,0.00030965,2]
[314341865,1708203044461,-500.0,0.00030965,2]
[314341866,1708203044471,-500.0,0.00030965,2]
[314341867,1708203044480,-500.0,0.00030965,2]
[314341868,1708203044489,-391.278602,0.00030979,2]
[314341869,1708203044498,-281.0430101,0.00030998,4]
[314341870,1708203044507,-235.67204023,0.00030998,4]
[314341871,1708203044516,-216.38793403,0.00030998,2]
[314341872,1708203044525,-245.32588603,0.00030998,4]